[Event "Titled Tuesday Blitz November 01 Late 2022"]
[White "Arbunic Castro, Giovanna"]
[Black "Munoz Sanchez, Miguel"]
[WhiteFideId "3400549"]
[BlackFideId "3600734"]
[WhiteElo "1938"]
[BlackElo "2166"]
[Result "0-1"]
[Round "10"]
[TimeControl "180+1"]
[Date "2022.11.02"]
[WhiteClock "0:00:02"]
[BlackClock "0:01:06"]

1. e4 {[%clk 0:03:00]}  e6 {[%clk 0:03:00]} 2. d4 {[%clk 0:02:58]}  d5 {[%clk 0:03:00]} 3. exd5 {[%clk 0:02:58]}  exd5 {[%clk 0:03:00]} 4. Nf3 {[%clk 0:02:58]}  Nc6 {[%clk 0:03:00]} 5. c4 {[%clk 0:02:58]}  Bb4+ {[%clk 0:02:50]} 6. Nc3 {[%clk 0:02:56]}  Nge7 {[%clk 0:02:50]} 7. Bg5 {[%clk 0:02:46]}  f6 {[%clk 0:02:48]} 8. Bh4 {[%clk 0:02:45]}  Bf5 {[%clk 0:02:42]} 9. Bd3 {[%clk 0:02:43]}  Bxd3 {[%clk 0:02:41]} 10. Qxd3 {[%clk 0:02:42]}  Qd7 {[%clk 0:02:40]} 11. O-O-O {[%clk 0:02:38]}  O-O-O {[%clk 0:02:37]} 12. c5 {[%clk 0:02:19]}  Bxc3 {[%clk 0:02:33]} 13. Qxc3 {[%clk 0:02:18]}  Nf5 {[%clk 0:02:31]} 14. Bg3 {[%clk 0:02:12]}  h5 {[%clk 0:02:31]} 15. b4 {[%clk 0:02:02]}  h4 {[%clk 0:02:30]} 16. Bf4 {[%clk 0:02:00]}  g5 {[%clk 0:02:29]} 17. Be3 {[%clk 0:01:44]}  a6 {[%clk 0:02:28]} 18. a4 {[%clk 0:01:41]}  Na7 {[%clk 0:02:23]} 19. Kd2 {[%clk 0:01:22]}  Rde8 {[%clk 0:02:22]} 20. Ra1 {[%clk 0:01:13]}  g4 {[%clk 0:02:17]} 21. b5 {[%clk 0:01:05]}  gxf3 {[%clk 0:02:11]} 22. c6 {[%clk 0:00:57]}  Nxc6 {[%clk 0:02:08]} 23. bxc6 {[%clk 0:00:56]}  Qxc6 {[%clk 0:02:07]} 24. Qb3 {[%clk 0:00:42]}  Nxe3 {[%clk 0:02:04]} 25. fxe3 {[%clk 0:00:40]}  fxg2 {[%clk 0:02:04]} 26. Rhc1 {[%clk 0:00:37]}  Qe6 {[%clk 0:02:00]} 27. Rab1 {[%clk 0:00:32]}  b6 {[%clk 0:01:55]} 28. Qd3 {[%clk 0:00:23]}  Kb7 {[%clk 0:01:51]} 29. a5 {[%clk 0:00:22]}  Qd6 {[%clk 0:01:25]} 30. axb6 {[%clk 0:00:18]}  cxb6 {[%clk 0:01:25]} 31. Ra1 {[%clk 0:00:18]}  Ra8 {[%clk 0:01:20]} 32. Qc3 {[%clk 0:00:16]}  Rhc8 {[%clk 0:01:18]} 33. Qb3 {[%clk 0:00:15]}  b5 {[%clk 0:01:12]} 34. Rg1 {[%clk 0:00:13]}  h3 {[%clk 0:01:11]} 35. Qd3 {[%clk 0:00:11]}  Qb4+ {[%clk 0:01:07]} 36. Ke2 {[%clk 0:00:09]}  Qc4 {[%clk 0:01:06]} 37. Qxc4 {[%clk 0:00:06]}  Rxc4 {[%clk 0:01:06]} 38. Kf3 {[%clk 0:00:02]}  Re8 {[%clk 0:01:06]} 0-1


[Site "https://www.chess.com"]

[Event "Titled Tuesday Blitz November 01 Late 2022"]
[White "Barria Zuniga, Daniel"]
[Black "Dehtiarov, Roman"]
[WhiteFideId "3400816"]
[BlackFideId "14186640"]
[WhiteElo "2414"]
[BlackElo "2200"]
[Result "0-1"]
[Round "10"]
[TimeControl "180+1"]
[Date "2022.11.02"]
[WhiteClock "0:00:01"]
[BlackClock "0:00:05"]

1. d4 {[%clk 0:03:00]}  Nf6 {[%clk 0:02:59]} 2. c4 {[%clk 0:03:01]}  e6 {[%clk 0:02:59]} 3. Nf3 {[%clk 0:03:01]}  b6 {[%clk 0:02:59]} 4. g3 {[%clk 0:03:01]}  Ba6 {[%clk 0:02:59]} 5. Qc2 {[%clk 0:03:01]}  c5 {[%clk 0:02:58]} 6. d5 {[%clk 0:03:01]}  Bb7 {[%clk 0:02:56]} 7. Bg2 {[%clk 0:02:59]}  exd5 {[%clk 0:02:56]} 8. cxd5 {[%clk 0:03:00]}  Nxd5 {[%clk 0:02:56]} 9. O-O {[%clk 0:02:59]}  Be7 {[%clk 0:02:56]} 10. Ne5 {[%clk 0:02:59]}  O-O {[%clk 0:02:47]} 11. Qb3 {[%clk 0:02:55]}  Nc6 {[%clk 0:02:14]} 12. Qxd5 {[%clk 0:02:50]}  Na5 {[%clk 0:01:48]} 13. Qxd7 {[%clk 0:02:47]}  Qxd7 {[%clk 0:01:39]} 14. Nxd7 {[%clk 0:02:46]}  Bxg2 {[%clk 0:01:39]} 15. Kxg2 {[%clk 0:02:38]}  Rfe8 {[%clk 0:01:35]} 16. Nc3 {[%clk 0:02:11]}  f6 {[%clk 0:01:33]} 17. Rd1 {[%clk 0:02:03]}  Kf7 {[%clk 0:01:22]} 18. Nb5 {[%clk 0:01:18]}  Red8 {[%clk 0:01:16]} 19. Be3 {[%clk 0:00:49]}  Nc6 {[%clk 0:01:07]} 20. Rd2 {[%clk 0:00:33]}  Rac8 {[%clk 0:00:41]} 21. Rad1 {[%clk 0:00:31]}  Ke6 {[%clk 0:00:36]} 22. f4 {[%clk 0:00:27]}  Kf7 {[%clk 0:00:27]} 23. f5 {[%clk 0:00:26]}  g6 {[%clk 0:00:22]} 24. g4 {[%clk 0:00:26]}  h5 {[%clk 0:00:18]} 25. h3 {[%clk 0:00:26]}  hxg4 {[%clk 0:00:18]} 26. hxg4 {[%clk 0:00:26]}  gxf5 {[%clk 0:00:19]} 27. gxf5 {[%clk 0:00:27]}  Rg8+ {[%clk 0:00:19]} 28. Kf3 {[%clk 0:00:27]}  Rcd8 {[%clk 0:00:18]} 29. Bf4 {[%clk 0:00:26]}  a6 {[%clk 0:00:16]} 30. Nc3 {[%clk 0:00:25]}  Nd4+ {[%clk 0:00:16]} 31. Rxd4 {[%clk 0:00:25]}  cxd4 {[%clk 0:00:17]} 32. Rxd4 {[%clk 0:00:25]}  Bc5 {[%clk 0:00:17]} 33. Nxc5 {[%clk 0:00:23]}  Rxd4 {[%clk 0:00:17]} 34. Ne6 {[%clk 0:00:23]}  Rb4 {[%clk 0:00:16]} 35. b3 {[%clk 0:00:22]}  Rc8 {[%clk 0:00:12]} 36. Ne4 {[%clk 0:00:21]}  Rc2 {[%clk 0:00:09]} 37. Bd6 {[%clk 0:00:04]}  Rb5 {[%clk 0:00:05]} 38. Bf4 {[%clk 0:00:02]}  Rb4 {[%clk 0:00:04]} 39. Bd6 {[%clk 0:00:01]}  Rxe4 {[%clk 0:00:04]} 40. Kxe4 {[%clk 0:00:01]}  Rxe2+ {[%clk 0:00:05]} 41. Kd5 {[%clk 0:00:01]}  Rxa2 {[%clk 0:00:06]} 42. Nd4 {[%clk 0:00:01]}  Ra5+ {[%clk 0:00:05]} 0-1


[Site "https://www.chess.com"]

[Event "Titled Tuesday Blitz November 01 Late 2022"]
[White "Baskakov, Egor"]
[Black "Rustemov, Alexander"]
[WhiteFideId "24197866"]
[BlackFideId "4119002"]
[WhiteElo "2211"]
[BlackElo "2924"]
[Result "0-1"]
[Round "10"]
[TimeControl "180+1"]
[Date "2022.11.01"]
[WhiteClock "0:00:40"]
[BlackClock "0:00:56"]

1. c4 {[%clk 0:03:00]}  c5 {[%clk 0:02:58]} 2. Nc3 {[%clk 0:03:00]}  g6 {[%clk 0:02:57]} 3. g3 {[%clk 0:03:01]}  Bg7 {[%clk 0:02:57]} 4. Bg2 {[%clk 0:03:01]}  Nc6 {[%clk 0:02:58]} 5. e3 {[%clk 0:03:02]}  Bxc3 {[%clk 0:02:56]} 6. bxc3 {[%clk 0:03:00]}  Qc7 {[%clk 0:02:55]} 7. Ne2 {[%clk 0:03:00]}  b6 {[%clk 0:02:55]} 8. O-O {[%clk 0:03:00]}  Bb7 {[%clk 0:02:55]} 9. d4 {[%clk 0:03:01]}  d6 {[%clk 0:02:55]} 10. Nf4 {[%clk 0:03:01]}  e6 {[%clk 0:02:55]} 11. e4 {[%clk 0:03:00]}  Na5 {[%clk 0:02:52]} 12. Re1 {[%clk 0:02:51]}  O-O-O {[%clk 0:02:44]} 13. d5 {[%clk 0:02:44]}  e5 {[%clk 0:02:20]} 14. Nd3 {[%clk 0:02:44]}  Kb8 {[%clk 0:01:56]} 15. Qg4 {[%clk 0:02:21]}  Nf6 {[%clk 0:01:53]} 16. Qh4 {[%clk 0:02:20]}  Nd7 {[%clk 0:01:51]} 17. f4 {[%clk 0:02:13]}  f6 {[%clk 0:01:48]} 18. fxe5 {[%clk 0:02:10]}  dxe5 {[%clk 0:01:46]} 19. Bh6 {[%clk 0:02:00]}  Nxc4 {[%clk 0:01:46]} 20. Rf1 {[%clk 0:01:53]}  Nd6 {[%clk 0:01:40]} 21. Rxf6 {[%clk 0:01:45]}  Nxf6 {[%clk 0:01:34]} 22. Qxf6 {[%clk 0:01:46]}  Nf7 {[%clk 0:01:32]} 23. Bg7 {[%clk 0:01:37]}  Rhg8 {[%clk 0:01:27]} 24. Rf1 {[%clk 0:01:30]}  Ba6 {[%clk 0:01:27]} 25. Qxf7 {[%clk 0:01:15]}  Rxg7 {[%clk 0:01:25]} 26. Qxc7+ {[%clk 0:01:15]}  Kxc7 {[%clk 0:01:23]} 27. Nxe5 {[%clk 0:01:02]}  Bxf1 {[%clk 0:01:21]} 28. Kxf1 {[%clk 0:01:03]}  Re8 {[%clk 0:01:18]} 29. Nc4 {[%clk 0:00:58]}  Rd7 {[%clk 0:01:04]} 30. e5 {[%clk 0:00:55]}  b5 {[%clk 0:01:00]} 31. d6+ {[%clk 0:00:55]}  Kc8 {[%clk 0:00:59]} 32. Na5 {[%clk 0:00:39]}  Rxe5 {[%clk 0:00:59]} 33. Nc6 {[%clk 0:00:40]}  Rf7+ {[%clk 0:00:56]} 0-1


[Site "https://www.chess.com"]

[Event "Titled Tuesday Blitz November 01 Late 2022"]
[White "Bayo Milagro, Alvaro"]
[Black "Bilan, Danila"]
[WhiteFideId "22275240"]
[BlackFideId "24161918"]
[WhiteElo "2270"]
[BlackElo "2203"]
[Result "1-0"]
[Round "10"]
[TimeControl "180+1"]
[Date "2022.11.02"]
[WhiteClock "0:00:07"]
[BlackClock "0:00:08"]

1. e4 {[%clk 0:03:00]}  c6 {[%clk 0:03:00]} 2. d4 {[%clk 0:02:59]}  d5 {[%clk 0:03:01]} 3. Nc3 {[%clk 0:02:59]}  dxe4 {[%clk 0:03:01]} 4. Nxe4 {[%clk 0:03:00]}  Bf5 {[%clk 0:03:02]} 5. Ng3 {[%clk 0:02:58]}  Bg6 {[%clk 0:03:01]} 6. h4 {[%clk 0:02:59]}  h6 {[%clk 0:03:01]} 7. Nf3 {[%clk 0:02:59]}  Nd7 {[%clk 0:03:01]} 8. h5 {[%clk 0:02:58]}  Bh7 {[%clk 0:03:01]} 9. Bd3 {[%clk 0:02:59]}  Bxd3 {[%clk 0:03:02]} 10. Qxd3 {[%clk 0:03:00]}  Qc7 {[%clk 0:03:03]} 11. Bd2 {[%clk 0:03:00]}  e6 {[%clk 0:03:03]} 12. O-O-O {[%clk 0:03:00]}  Bd6 {[%clk 0:03:04]} 13. Ne4 {[%clk 0:03:00]}  Ngf6 {[%clk 0:03:05]} 14. Nxd6+ {[%clk 0:03:00]}  Qxd6 {[%clk 0:03:06]} 15. Kb1 {[%clk 0:03:01]}  Qd5 {[%clk 0:03:05]} 16. c4 {[%clk 0:02:59]}  Qe4 {[%clk 0:03:05]} 17. Qxe4 {[%clk 0:02:57]}  Nxe4 {[%clk 0:03:06]} 18. Be3 {[%clk 0:02:56]}  O-O {[%clk 0:03:06]} 19. Ne5 {[%clk 0:02:54]}  Rfd8 {[%clk 0:03:00]} 20. g4 {[%clk 0:02:43]}  f6 {[%clk 0:02:49]} 21. Ng6 {[%clk 0:02:35]}  Kf7 {[%clk 0:02:47]} 22. f3 {[%clk 0:02:30]}  Nd6 {[%clk 0:02:45]} 23. b3 {[%clk 0:02:18]}  b5 {[%clk 0:02:35]} 24. c5 {[%clk 0:02:12]}  Ne8 {[%clk 0:02:29]} 25. f4 {[%clk 0:02:12]}  Nc7 {[%clk 0:02:25]} 26. Rhe1 {[%clk 0:02:10]}  Nd5 {[%clk 0:02:19]} 27. Bd2 {[%clk 0:02:11]}  Nf8 {[%clk 0:02:05]} 28. Nh4 {[%clk 0:02:00]}  a5 {[%clk 0:01:55]} 29. Kb2 {[%clk 0:01:53]}  a4 {[%clk 0:01:50]} 30. b4 {[%clk 0:01:53]}  Rd7 {[%clk 0:01:35]} 31. Re2 {[%clk 0:01:46]}  Rad8 {[%clk 0:01:32]} 32. Rde1 {[%clk 0:01:46]}  Nxb4 {[%clk 0:00:53]} 33. Bxb4 {[%clk 0:01:44]}  Rxd4 {[%clk 0:00:53]} 34. Re4 {[%clk 0:01:29]}  R8d5 {[%clk 0:00:41]} 35. Nf3 {[%clk 0:01:23]}  Rd3 {[%clk 0:00:39]} 36. R4e3 {[%clk 0:01:08]}  Nd7 {[%clk 0:00:27]} 37. R1e2 {[%clk 0:00:28]}  Rxe3 {[%clk 0:00:20]} 38. Rxe3 {[%clk 0:00:28]}  e5 {[%clk 0:00:12]} 39. fxe5 {[%clk 0:00:25]}  fxe5 {[%clk 0:00:12]} 40. Kc2 {[%clk 0:00:19]}  Ke6 {[%clk 0:00:11]} 41. Nh4 {[%clk 0:00:14]}  Nxc5 {[%clk 0:00:07]} 42. Nf5 {[%clk 0:00:14]}  Kf6 {[%clk 0:00:05]} 43. Rc3 {[%clk 0:00:11]}  Ne6 {[%clk 0:00:03]} 44. Rxc6 {[%clk 0:00:11]}  Kf7 {[%clk 0:00:02]} 45. Nd6+ {[%clk 0:00:05]}  Kf6 {[%clk 0:00:02]} 46. Nf5 {[%clk 0:00:05]}  Kf7 {[%clk 0:00:03]} 47. Rb6 {[%clk 0:00:06]}  Nd4+ {[%clk 0:00:02]} 48. Nxd4 {[%clk 0:00:05]}  Rxd4 {[%clk 0:00:03]} 49. Rb7+ {[%clk 0:00:05]}  Kg8 {[%clk 0:00:03]} 50. Bc3 {[%clk 0:00:05]}  Rxg4 {[%clk 0:00:03]} 51. Bxe5 {[%clk 0:00:06]}  Rg5 {[%clk 0:00:04]} 52. Bc3 {[%clk 0:00:05]}  Rxh5 {[%clk 0:00:04]} 53. Rxg7+ {[%clk 0:00:05]}  Kf8 {[%clk 0:00:05]} 54. Rb7 {[%clk 0:00:06]}  Rf5 {[%clk 0:00:05]} 55. Bg7+ {[%clk 0:00:05]}  Ke8 {[%clk 0:00:05]} 56. Bxh6 {[%clk 0:00:06]}  Kd8 {[%clk 0:00:06]} 57. Bd2 {[%clk 0:00:05]}  Kc8 {[%clk 0:00:06]} 58. Rh7 {[%clk 0:00:05]}  Rd5 {[%clk 0:00:04]} 59. Bb4 {[%clk 0:00:05]}  Rd4 {[%clk 0:00:03]} 60. a3 {[%clk 0:00:05]}  Rd5 {[%clk 0:00:04]} 61. Rg7 {[%clk 0:00:05]}  Rf5 {[%clk 0:00:03]} 62. Kc3 {[%clk 0:00:05]}  Rh5 {[%clk 0:00:04]} 63. Kd4 {[%clk 0:00:05]}  Rf5 {[%clk 0:00:04]} 64. Re7 {[%clk 0:00:05]}  Rh5 {[%clk 0:00:04]} 65. Re5 {[%clk 0:00:05]}  Rxe5 {[%clk 0:00:04]} 66. Kxe5 {[%clk 0:00:06]}  Kb7 {[%clk 0:00:05]} 67. Kd5 {[%clk 0:00:06]}  Ka8 {[%clk 0:00:06]} 68. Kc6 {[%clk 0:00:07]}  Ka7 {[%clk 0:00:06]} 69. Bc5+ {[%clk 0:00:07]}  Ka6 {[%clk 0:00:07]} 70. Bb6 {[%clk 0:00:06]}  b4 {[%clk 0:00:07]} 71. axb4 {[%clk 0:00:06]}  a3 {[%clk 0:00:08]} 72. b5# {[%clk 0:00:07]} 1-0


[Site "https://www.chess.com"]

[Event "Titled Tuesday Blitz November 01 Late 2022"]
[White "Bettalli, Francesco"]
[Black "Rose, Felix"]
[WhiteFideId "2816453"]
[BlackFideId "5105722"]
[WhiteElo "2216"]
[BlackElo "2039"]
[Result "1-0"]
[Round "10"]
[TimeControl "180+1"]
[Date "2022.11.02"]
[WhiteClock "0:01:13"]
[BlackClock "0:00:07"]

1. d4 {[%clk 0:03:00]}  Nf6 {[%clk 0:02:57]} 2. Nc3 {[%clk 0:03:01]}  d5 {[%clk 0:02:57]} 3. Bg5 {[%clk 0:03:00]}  Nbd7 {[%clk 0:02:54]} 4. Qd3 {[%clk 0:03:00]}  h6 {[%clk 0:02:54]} 5. Bh4 {[%clk 0:02:58]}  c5 {[%clk 0:02:54]} 6. e4 {[%clk 0:02:58]}  dxe4 {[%clk 0:02:53]} 7. Nxe4 {[%clk 0:02:58]}  Nxe4 {[%clk 0:02:47]} 8. Qxe4 {[%clk 0:02:59]}  Qa5+ {[%clk 0:02:33]} 9. c3 {[%clk 0:02:56]}  cxd4 {[%clk 0:02:33]} 10. Qxd4 {[%clk 0:02:57]}  e5 {[%clk 0:02:28]} 11. Qd2 {[%clk 0:02:54]}  g5 {[%clk 0:01:56]} 12. Bg3 {[%clk 0:02:53]}  Bg7 {[%clk 0:01:56]} 13. Nf3 {[%clk 0:02:51]}  O-O {[%clk 0:01:55]} 14. h4 {[%clk 0:02:50]}  g4 {[%clk 0:01:53]} 15. Nh2 {[%clk 0:02:49]}  Nf6 {[%clk 0:01:49]} 16. Bd3 {[%clk 0:02:44]}  Rd8 {[%clk 0:01:44]} 17. Qe2 {[%clk 0:02:43]}  e4 {[%clk 0:01:28]} 18. Bc2 {[%clk 0:02:38]}  Bd7 {[%clk 0:01:12]} 19. a4 {[%clk 0:02:32]}  Qb6 {[%clk 0:01:11]} 20. Rb1 {[%clk 0:02:24]}  Re8 {[%clk 0:01:00]} 21. Nf1 {[%clk 0:02:22]}  Nh5 {[%clk 0:00:40]} 22. Ne3 {[%clk 0:02:03]}  Nxg3 {[%clk 0:00:34]} 23. fxg3 {[%clk 0:02:04]}  Be5 {[%clk 0:00:31]} 24. Qf2 {[%clk 0:01:47]}  Qc7 {[%clk 0:00:17]} 25. O-O {[%clk 0:01:44]}  Be6 {[%clk 0:00:14]} 26. Nf5 {[%clk 0:01:40]}  Bxf5 {[%clk 0:00:12]} 27. Qxf5 {[%clk 0:01:41]}  Bxg3 {[%clk 0:00:13]} 28. Bxe4 {[%clk 0:01:37]}  Rxe4 {[%clk 0:00:09]} 29. Qxe4 {[%clk 0:01:37]}  Bxh4 {[%clk 0:00:08]} 30. Qxg4+ {[%clk 0:01:35]}  Bg5 {[%clk 0:00:08]} 31. Rbe1 {[%clk 0:01:33]}  Rd8 {[%clk 0:00:07]} 32. Re4 {[%clk 0:01:33]}  Qc5+ {[%clk 0:00:07]} 33. Kh1 {[%clk 0:01:31]}  Rd2 {[%clk 0:00:07]} 34. Qf3 {[%clk 0:01:27]}  Qc7 {[%clk 0:00:06]} 35. a5 {[%clk 0:01:18]}  Rxb2 {[%clk 0:00:06]} 36. Rb4 {[%clk 0:01:14]}  Rc2 {[%clk 0:00:06]} 37. Rxb7 {[%clk 0:01:14]}  Qxc3 {[%clk 0:00:06]} 38. Qxf7+ {[%clk 0:01:12]}  Kh8 {[%clk 0:00:07]} 39. Qh7# {[%clk 0:01:13]} 1-0


[Site "https://www.chess.com"]

[Event "Titled Tuesday Blitz November 01 Late 2022"]
[White "Boidiya, Sidi"]
[Black "Janaszak, Dawid"]
[WhiteFideId "19600100"]
[BlackFideId "1119206"]
[WhiteElo "2113"]
[BlackElo "2226"]
[Result "0-1"]
[Round "10"]
[TimeControl "180+1"]
[Date "2022.11.02"]
[WhiteClock "0:00:17"]
[BlackClock "0:01:48"]

1. e4 {[%clk 0:01:31]}  c5 {[%clk 0:02:58]} 2. Nc3 {[%clk 0:01:30]}  e6 {[%clk 0:02:57]} 3. g3 {[%clk 0:01:31]}  d5 {[%clk 0:02:57]} 4. exd5 {[%clk 0:01:29]}  exd5 {[%clk 0:02:57]} 5. Bg2 {[%clk 0:01:29]}  Nf6 {[%clk 0:02:56]} 6. d3 {[%clk 0:01:28]}  Be7 {[%clk 0:02:56]} 7. Nge2 {[%clk 0:01:27]}  d4 {[%clk 0:02:55]} 8. Ne4 {[%clk 0:01:27]}  Nxe4 {[%clk 0:02:55]} 9. dxe4 {[%clk 0:01:28]}  O-O {[%clk 0:02:53]} 10. O-O {[%clk 0:01:28]}  Nc6 {[%clk 0:02:54]} 11. Nf4 {[%clk 0:01:27]}  Bd6 {[%clk 0:02:49]} 12. Nd5 {[%clk 0:01:08]}  Be6 {[%clk 0:02:48]} 13. c4 {[%clk 0:01:07]}  dxc3 {[%clk 0:02:36]} 14. Nxc3 {[%clk 0:01:05]}  Nd4 {[%clk 0:02:21]} 15. Be3 {[%clk 0:01:00]}  Qb6 {[%clk 0:02:20]} 16. Rb1 {[%clk 0:00:55]}  Rad8 {[%clk 0:02:19]} 17. Nd5 {[%clk 0:00:50]}  Qa6 {[%clk 0:02:12]} 18. a3 {[%clk 0:00:45]}  Bxd5 {[%clk 0:02:08]} 19. exd5 {[%clk 0:00:41]}  Be5 {[%clk 0:02:08]} 20. b4 {[%clk 0:00:36]}  Ne2+ {[%clk 0:02:00]} 21. Kh1 {[%clk 0:00:33]}  Nc3 {[%clk 0:02:01]} 22. Qb3 {[%clk 0:00:29]}  Nxb1 {[%clk 0:02:00]} 23. Rxb1 {[%clk 0:00:22]}  cxb4 {[%clk 0:02:00]} 24. Qxb4 {[%clk 0:00:22]}  b6 {[%clk 0:01:49]} 25. h3 {[%clk 0:00:19]}  Bd6 {[%clk 0:01:49]} 26. Qc4 {[%clk 0:00:17]}  Qxc4 {[%clk 0:01:48]} 0-1


[Site "https://www.chess.com"]

[Event "Titled Tuesday Blitz November 01 Late 2022"]
[White "Broca Jimenez, Fernando"]
[Black "Vargas, Mauricio"]
[WhiteFideId "5104742"]
[BlackFideId "4404572"]
[WhiteElo "2062"]
[BlackElo "2025"]
[Result "1-0"]
[Round "10"]
[TimeControl "180+1"]
[Date "2022.11.02"]
[WhiteClock "0:00:18"]
[BlackClock "0:00:02"]

1. e4 {[%clk 0:01:36]}  d6 {[%clk 0:00:41]} 2. c4 {[%clk 0:01:26]}  c6 {[%clk 0:00:36]} 3. Nc3 {[%clk 0:01:25]}  g6 {[%clk 0:00:36]} 4. d4 {[%clk 0:01:18]}  Bg7 {[%clk 0:00:37]} 5. Nf3 {[%clk 0:01:18]}  a6 {[%clk 0:00:38]} 6. h3 {[%clk 0:01:18]}  b5 {[%clk 0:00:39]} 7. a3 {[%clk 0:01:16]}  Bb7 {[%clk 0:00:39]} 8. Bg5 {[%clk 0:01:15]}  Nd7 {[%clk 0:00:39]} 9. Qd2 {[%clk 0:01:14]}  h6 {[%clk 0:00:39]} 10. Be3 {[%clk 0:01:14]}  e6 {[%clk 0:00:37]} 11. Bd3 {[%clk 0:01:14]}  Ngf6 {[%clk 0:00:32]} 12. O-O {[%clk 0:01:13]}  O-O {[%clk 0:00:32]} 13. Bxh6 {[%clk 0:01:12]}  bxc4 {[%clk 0:00:20]} 14. Bxc4 {[%clk 0:01:11]}  c5 {[%clk 0:00:13]} 15. d5 {[%clk 0:01:04]}  Ne5 {[%clk 0:00:03]} 16. Nxe5 {[%clk 0:00:59]}  dxe5 {[%clk 0:00:04]} 17. dxe6 {[%clk 0:00:58]}  fxe6 {[%clk 0:00:04]} 18. Bxe6+ {[%clk 0:00:48]}  Kh7 {[%clk 0:00:03]} 19. Qxd8 {[%clk 0:00:44]}  Raxd8 {[%clk 0:00:03]} 20. Bxg7 {[%clk 0:00:41]}  Kxg7 {[%clk 0:00:01]} 21. Bc4 {[%clk 0:00:24]}  Nh5 {[%clk 0:00:02]} 22. f3 {[%clk 0:00:20]}  Nf6 {[%clk 0:00:03]} 23. Rad1 {[%clk 0:00:19]}  Nh5 {[%clk 0:00:04]} 24. Nd5 {[%clk 0:00:19]}  Nf4 {[%clk 0:00:04]} 25. Nxf4 {[%clk 0:00:19]}  exf4 {[%clk 0:00:02]} 26. Kf2 {[%clk 0:00:18]} 1-0


[Site "https://www.chess.com"]

[Event "Titled Tuesday Blitz November 01 Late 2022"]
[White "Castella Garcia, Fausto"]
[Black "Li, Ben"]
[WhiteFideId "3501922"]
[BlackFideId "2089980"]
[WhiteElo "2246"]
[BlackElo "2267"]
[Result "0-1"]
[Round "10"]
[TimeControl "180+1"]
[Date "2022.11.02"]
[WhiteClock "0:00:01"]
[BlackClock "0:00:03"]

1. e4 {[%clk 0:03:00]}  e5 {[%clk 0:02:55]} 2. Nf3 {[%clk 0:03:00]}  Nf6 {[%clk 0:02:55]} 3. d4 {[%clk 0:02:59]}  Nxe4 {[%clk 0:02:54]} 4. Bd3 {[%clk 0:02:59]}  d5 {[%clk 0:02:53]} 5. Nxe5 {[%clk 0:02:58]}  Bd6 {[%clk 0:02:53]} 6. O-O {[%clk 0:02:57]}  O-O {[%clk 0:02:53]} 7. c4 {[%clk 0:02:58]}  Nf6 {[%clk 0:02:52]} 8. Nc3 {[%clk 0:02:55]}  dxc4 {[%clk 0:02:50]} 9. Bxc4 {[%clk 0:02:54]}  Nbd7 {[%clk 0:02:50]} 10. Re1 {[%clk 0:02:41]}  c6 {[%clk 0:02:48]} 11. Bg5 {[%clk 0:02:38]}  h6 {[%clk 0:02:45]} 12. Bh4 {[%clk 0:02:31]}  Nb6 {[%clk 0:02:37]} 13. Bb3 {[%clk 0:02:27]}  g5 {[%clk 0:02:36]} 14. Bg3 {[%clk 0:02:25]}  Bf5 {[%clk 0:02:36]} 15. Qf3 {[%clk 0:02:15]}  Bh7 {[%clk 0:02:29]} 16. Rad1 {[%clk 0:02:05]}  Nbd5 {[%clk 0:01:10]} 17. Nxd5 {[%clk 0:01:50]}  cxd5 {[%clk 0:01:11]} 18. h4 {[%clk 0:01:45]}  Be7 {[%clk 0:00:37]} 19. hxg5 {[%clk 0:01:41]}  hxg5 {[%clk 0:00:37]} 20. Ng4 {[%clk 0:01:08]}  Be4 {[%clk 0:00:22]} 21. Nxf6+ {[%clk 0:01:03]}  Bxf6 {[%clk 0:00:23]} 22. Rxe4 {[%clk 0:01:02]}  dxe4 {[%clk 0:00:23]} 23. Qxe4 {[%clk 0:01:00]}  Kg7 {[%clk 0:00:23]} 24. f4 {[%clk 0:00:54]}  Re8 {[%clk 0:00:20]} 25. Qf5 {[%clk 0:00:45]}  Bxd4+ {[%clk 0:00:19]} 26. Kf1 {[%clk 0:00:45]}  Qf6 {[%clk 0:00:17]} 27. Qxg5+ {[%clk 0:00:31]}  Qxg5 {[%clk 0:00:16]} 28. fxg5 {[%clk 0:00:31]}  Be5 {[%clk 0:00:12]} 29. Bxe5+ {[%clk 0:00:27]}  Rxe5 {[%clk 0:00:12]} 30. Rd7 {[%clk 0:00:27]}  Rf5+ {[%clk 0:00:09]} 31. Kg1 {[%clk 0:00:25]}  Rb8 {[%clk 0:00:10]} 32. g6 {[%clk 0:00:22]}  Kxg6 {[%clk 0:00:01]} 33. Bc2 {[%clk 0:00:21]}  Kf6 {[%clk 0:00:02]} 34. Bxf5 {[%clk 0:00:21]}  Kxf5 {[%clk 0:00:03]} 35. Rxf7+ {[%clk 0:00:20]}  Kg6 {[%clk 0:00:04]} 36. Rc7 {[%clk 0:00:20]}  a5 {[%clk 0:00:04]} 37. Kf2 {[%clk 0:00:17]}  b6 {[%clk 0:00:04]} 38. g4 {[%clk 0:00:16]}  Kg5 {[%clk 0:00:04]} 39. Kg3 {[%clk 0:00:16]}  Rd8 {[%clk 0:00:04]} 40. Rc6 {[%clk 0:00:08]}  Rd3+ {[%clk 0:00:04]} 41. Kf2 {[%clk 0:00:07]}  Rd2+ {[%clk 0:00:05]} 42. Ke3 {[%clk 0:00:07]}  Rxb2 {[%clk 0:00:06]} 43. a4 {[%clk 0:00:06]}  Kxg4 {[%clk 0:00:06]} 44. Kd3 {[%clk 0:00:05]}  Kf4 {[%clk 0:00:06]} 45. Kc3 {[%clk 0:00:05]}  Rb1 {[%clk 0:00:05]} 46. Kc4 {[%clk 0:00:03]}  Rb4+ {[%clk 0:00:04]} 47. Kd5 {[%clk 0:00:04]}  Ke3 {[%clk 0:00:04]} 48. Rc4 {[%clk 0:00:01]}  Rb1 {[%clk 0:00:04]} 49. Kc6 {[%clk 0:00:02]}  Kd3 {[%clk 0:00:04]} 50. Rh4 {[%clk 0:00:02]}  Kc3 {[%clk 0:00:03]} 51. Rh3+ {[%clk 0:00:01]}  Kc2 {[%clk 0:00:03]} 0-1


[Site "https://www.chess.com"]